[Event "7th Sharjah Masters 2024"]
[Site "Sharjah"]
[Date "2024.05.16"]
[Round "3.23"]
[White "Mishra, Abhimanyu"]
[Black "Horvath, Dominik"]
[Result "1/2-1/2"]
[ECO "C43"]
[WhiteElo "2634"]
[BlackElo "2554"]
[Annotator "TA"]
[PlyCount "60"]
[EventDate "2024.05.13"]
[EventType "swiss"]
[EventCountry "UAE"]
[SourceTitle "playchess.com"]
[Source "ChessBase"]
[SourceQuality "1"]
[TimeControl "5400+30"]

{[%evp 9,60,25,31,26,29,41,48,52,45,43,45,40,43,43,41,29,28,35,37,29,38,43,49,40,59,71,90,96,89,93,90,64,98,67,65,61,66,65,63,41,29990,35,32,32,456,48,373,110,922,553,965,339,553]} 1. e4 {[%emt 0:00:01]} e5 {[%emt 0:00:07]} 2. Nf3 {[%emt 0:00:05]} Nf6 {[%emt 0:00:04]} 3. d4 {[%emt 0:00:10][%cal Bd2d4,Bd4e5,Be5d6,Bd6c7][%mdl 32]} Nxe4 {[%emt 0:00:06]} 4. Bd3 {[%emt 0:00:16]} Nc6 {[%emt 0:01:09]} 5. Nxe5 {[%emt 0:01:03]} Nxe5 {[%emt 0:00:07]} 6. dxe5 {[%emt 0:00:10]} d5 {[%emt 0:00:04]} 7. exd6 {[%emt 0:01:15]} Nc5 {[%emt 0:00:37]} 8. dxc7 {[%emt 0:12:25] White is slightly better.} Nxd3+ {[%emt 0:00:07]} 9. Qxd3 {[%emt 0:07:41]} Qxd3 {[%emt 0:00:39]} 10. cxd3 {[%emt 0:00:02]} Bd6 {[%emt 0:00:06] Prevents Bf4.} 11. Nc3 {[%emt 0:02:18] And now Nb5 would win.} Bxc7 {[%emt 0:00:10]} 12. Be3 {[%emt 0:04:57]} O-O {[%emt 0:14:18]} 13. O-O {[%emt 0:00:50]} Rd8 {[%emt 0:01:12]} 14. Rfd1 {[%emt 0:12:22]} Bf5 {[%emt 0:13:25]} 15. d4 {[%emt 0:04:37][%cal Bd3d4,Bd4d5][%mdl 32]} Ba5 {[%emt 0:11:55]} 16. d5 {[%emt 0:04:36]} Bxc3 {[%emt 0:00:56]} 17. bxc3 {[%emt 0:00:08]} Rac8 {[%emt 0:01:17] [#]} 18. Rac1 $1 {[%emt 0:06:47]} (18. Bxa7 Rxc3 19. h3 Rd3 $11) 18... Rc4 {[%emt 0:24:06]} 19. Bxa7 {[%emt 0:11:37]} f6 {[%emt 0:01:01]} 20. Rd2 {[%emt 0:11:48]} Kf7 {[%emt 0:00:07]} 21. Be3 {[%emt 0:08:53]} b5 {[%emt 0:05:58]} 22. Bb6 {[%emt 0:01:54]} Rdc8 {[%emt 0:00:44][%cal Ob5b4]} 23. d6 {[%emt 0:00:39] Threatens to win with d7.} Rxc3 {[%emt 0:01:04]} 24. Rxc3 {[%emt 0:00:09]} Rc7 {[%emt 0:23:11][%mdl 8192] [#]} 25. Rc4 $2 Rxc4 $14 {[%emt 0:00:00]} 26. h3 {[%emt 0:00:39] d7 would now be deadly.} Rc3 $2 {[%emt 0:00:00][%mdl 8192]} (26... Bd7 $14) 27. Re2 $2 {[%emt 0:01:47]} (27. d7 $18 Bxd7 28. Rxd7+ Kg6 29. Rd2 Rc1+ 30. Kh2) 27... Ra3 $2 {[%emt 0:00:00][%mdl 8192]} (27... Be6 $14) 28. g4 $2 {[%emt 0:03:06]} (28. Re7+ $18 {and the rest is easy.} Kg6 29. d7 Bxd7 30. Rxd7) 28... Bc2 $2 {[%emt 0:00:00][%mdl 8192]} 29. Kh2 {[%emt 0:02:54]} b4 {[%emt 0:00:00]} 30. f3 $2 {[%emt 0:00:39]} (30. Rxc2 Rd3 31. Bc5) 30... Bd1 $2 {[%emt 0:00:00][%mdl 32768] Weighted Error Value: White=0.98/Black=0.92.  Loses game:     	---       	Black=4      Missed win:     	White=3     	---        Mistake:       	---       	Black=1      Inaccurate:     	White=2     	Black=2      OK:         	White=5     	Black=5      Best:        	White=2     	Black=3      Strong:       	White=1     	---       . An unexpected result.} (30... Ba4 {was necessary.} 31. Re7+ Kg8) 1/2-1/2

[Event "7th Sharjah Masters 2024"]
[Site "Sharjah"]
[Date "2024.05.16"]
[Round "3.24"]
[White "Erdogmus, Yagiz Kaan"]
[Black "Suleymanli, Aydin"]
[Result "0-1"]
[ECO "E20"]
[WhiteElo "2554"]
[BlackElo "2621"]
[Annotator "TA"]
[PlyCount "92"]
[EventDate "2024.05.13"]
[EventType "swiss"]
[EventCountry "UAE"]
[SourceTitle "playchess.com"]
[Source "ChessBase"]
[SourceQuality "1"]
[TimeControl "5400+30"]

{[%evp 25,92,-15,-10,-2,-11,-16,0,-22,-20,-15,0,0,0,0,0,0,0,0,0,0,0,-106,-75,-175,-41,-72,-80,-92,-96,-166,-131,-212,-121,-115,-106,-151,-153,-154,-147,-200,-183,-196,-192,-196,-189,-182,-185,-277,-262,-253,-266,-706,-734,-760,-574,-921,-908,-834,-821,-1362,-1243,-1212,-1173,-1150,-1090,-29986,-29987,-29987,-29988]} 1. d4 {[%emt 0:00:09]} Nf6 {[%emt 0:00:07]} 2. c4 {[%emt 0:00:03]} e6 {[%emt 0:00:03]} 3. Nc3 {[%emt 0:00:06]} Bb4 {[%emt 0:00:05]} 4. f3 {[%emt 0:00:06]} c5 {[%emt 0:00:48]} 5. d5 {[%emt 0:00:08]} d6 {[%emt 0:00:39]} 6. e4 {[%emt 0:00:40]} b5 {[%emt 0:00:19] E20: Nimzo-Indian: 4 g3 and 4 f3.} 7. Nge2 {[%emt 0:00:44]} bxc4 {[%emt 0:00:14]} 8. Nf4 {[%emt 0:00:40]} e5 {[%emt 0:00:04]} 9. Nfe2 {[%emt 0:00:04]} Nbd7 {[%emt 0:01:58]} 10. Ng3 {[%emt 0:00:43]} Nb6 {[%emt 0:00:15]} 11. Be2 {[%emt 0:01:47]} Ng8 {[%emt 0:02:45]} 12. h4 {[%emt 0:01:56]} f5 {[%emt 0:07:51]} 13. f4 {[%emt 0:03:50]} Nf6 {[%emt 0:07:54]} 14. O-O {[%emt 0:05:36]} O-O $146 {[%emt 0:01:00]} ({Predecessor:} 14... Bxc3 15. bxc3 O-O 16. fxe5 dxe5 17. exf5 Bb7 18. a4 Kh8 19. d6 Nbd5 20. Bxc4 Qxd6 {0-1 Doshi,M (2401)-Arhan,C (2341) Abu Dhabi op 29th 2023 (5)}) 15. fxe5 {[%emt 0:24:36]} dxe5 {[%emt 0:00:12]} 16. exf5 {[%emt 0:03:00]} Bb7 {[%emt 0:02:31]} 17. d6 {[%emt 0:11:11]} Bxc3 {[%emt 0:26:45]} 18. bxc3 {[%emt 0:00:07]} Bd5 {[%emt 0:00:46]} 19. a4 {[%emt 0:12:08]} a5 {[%emt 0:10:18]} 20. Rb1 {[%emt 0:05:02]} Qxd6 {[%emt 0:01:48]} 21. Nh5 {[%emt 0:17:38]} Nfd7 {[%emt 0:07:42]} 22. f6 {[%emt 0:06:35]} g6 {[%emt 0:01:13]} (22... Nxf6 $2 23. Nxf6+ (23. Rxb6 Qxb6 24. Nxf6+ gxf6 $18) 23... gxf6 (23... Rxf6 $2 24. Rxb6 Rxf1+ 25. Bxf1 $18) 24. Rxb6 Qxb6 25. Qxd5+ Kh8 26. Bxc4 $18 (26. Bh6 Rad8 $18)) 23. Qd2 {[%emt 0:04:08]} (23. f7+ Rxf7 24. Rxf7 Kxf7 $15) (23. Bg5 $11 {keeps the balance.}) 23... Rf7 {[%emt 0:01:07]} (23... gxh5 24. Qg5+ Kf7 25. Bxh5+ Ke6 26. Qg4#) (23... Nxf6 $2 24. Rxb6 Ne4 25. Rxd6 $18) 24. Qg5 {[%emt 0:00:53]} (24. Ng3 $17) 24... Be4 {[%emt 0:11:47]} (24... Kh8 25. Ng3 $17) (24... Nxa4 $19 25. Bd2 Kh8) 25. Rxb6 {[%emt 0:00:32]} Nxb6 {[%emt 0:00:01]} 26. Ng3 {[%emt 0:00:01]} Bc2 {[%emt 0:00:46]} 27. h5 {[%emt 0:00:41]} (27. Bf3 $17 {was necessary.}) 27... Raf8 $1 $19 {[%emt 0:05:15]} 28. hxg6 {[%emt 0:00:07]} hxg6 {[%emt 0:00:10]} (28... Rxf6 $19 29. gxh7+ Kh8) 29. Nh5 $17 {[%emt 0:00:46]} Rh7 $1 {[%emt 0:01:00]} 30. Ng3 {[%emt 0:00:35]} Kh8 {[%emt 0:01:03]} 31. Rf2 {[%emt 0:00:50]} Bb1 {[%emt 0:03:18]} 32. Nf1 {[%emt 0:00:32]} (32. Be3 $17) 32... Nd7 {[%emt 0:01:37]} 33. Ne3 {[%emt 0:00:30]} Bd3 {[%emt 0:03:05]} (33... Nxf6 34. Nxc4 Qe6 35. Bg4) 34. Nxc4 {[%emt 0:00:28]} Bxc4 {[%emt 0:00:05]} 35. Bxc4 {[%emt 0:00:01]} Rxf6 {[%emt 0:00:23]} ({But not} 35... Nxf6 36. Qxg6 Qd1+ 37. Rf1 $17) 36. Rd2 {[%emt 0:00:01]} (36. Rxf6 $142 Qxf6 37. Be3) 36... Qf8 $19 {[%emt 0:01:07]} 37. Rd1 {[%emt 0:01:01] [#]} Rf5 $1 {[%emt 0:00:38]} 38. Qxg6 $2 {[%emt 0:00:38] [#]} (38. Rf1 Rxf1+ 39. Bxf1) 38... Rfh5 $1 $19 {[%emt 0:00:20]} 39. Qxh5 {[%emt 0:00:25]} Rxh5 {[%emt 0:00:01]} 40. Rxd7 {[%emt 0:00:01]} Qf6 {[%emt 0:01:55]} 41. Be2 {[%emt 0:01:21]} Rh7 {[%emt 0:00:51]} 42. Rd3 {[%emt 0:00:33]} Qh4 {[%emt 0:00:12]} 43. Bd2 {[%emt 0:00:20]} Qh1+ {[%emt 0:01:04]} 44. Kf2 {[%emt 0:00:03]} Rf7+ {[%emt 0:00:05]} 45. Kg3 {[%emt 0:00:07]} Rg7+ {[%emt 0:00:10]} 46. Bg4 {[%emt 0:00:19]} Qh5 {[%emt 0:00:19]} 0-1

[Event "7th Sharjah Masters 2024"]
[Site "Sharjah"]
[Date "2024.05.16"]
[Round "3.25"]
[White "Gledura, Benjamin"]
[Black "Adhiban, B.."]
[Result "1/2-1/2"]
[ECO "D38"]
[WhiteElo "2619"]
[BlackElo "2523"]
[Annotator "TA"]
[PlyCount "56"]
[EventDate "2024.05.13"]
[EventType "swiss"]
[EventCountry "UAE"]
[SourceTitle "playchess.com"]
[Source "ChessBase"]
[SourceQuality "1"]
[TimeControl "5400+30"]

{[%evp 9,56,21,17,5,17,5,23,25,22,20,10,14,23,19,19,25,16,11,16,12,17,20,29979,10,237,10,35,10,13,12,22,5,11,9,16,16,18,16,17,14,17,4,4,6,6,0,7,0,8]} 1. d4 {[%emt 0:00:04]} d5 {[%emt 0:00:14]} 2. c4 {[%emt 0:00:10]} e6 {[%emt 0:00:05]} 3. Nf3 {[%emt 0:00:28]} Nf6 {[%emt 0:00:05]} 4. Nc3 {[%emt 0:00:13]} Bb4 {[%emt 0:00:07]} 5. Qa4+ {[%emt 0:04:57]} Nc6 {[%emt 0:00:05]} 6. Qc2 {[%emt 0:03:56]} O-O {[%emt 0:03:36]} 7. Bg5 {[%emt 0:07:17]} h6 {[%emt 0:00:13]} 8. Bxf6 {[%emt 0:04:25] White has an edge.} Qxf6 {[%emt 0:00:02]} 9. a3 {[%emt 0:00:18]} Bxc3+ {[%emt 0:05:44]} 10. Qxc3 {[%emt 0:01:12]} dxc4 {[%emt 0:06:55]} 11. e3 {[%emt 0:00:23]} Re8 {[%emt 0:02:31]} 12. Bxc4 {[%emt 0:16:50]} e5 {[%emt 0:00:14]} 13. dxe5 {[%emt 0:00:38]} (13. Nxe5 {simplifies} Nxe5 14. dxe5 Qxe5 15. Qxe5 Rxe5 16. O-O-O) 13... Nxe5 {[%emt 0:00:10]} 14. Nxe5 {[%emt 0:00:09]} (14. Rc1 {simplifies} Nxf3+ 15. gxf3 Qxc3+ 16. Rxc3 c6 17. Ke2) 14... Qxe5 {[%emt 0:02:40]} 15. Qxe5 {[%emt 0:04:51]} Re7 {[%emt 1:15:19][%mdl 8192] [#]} 16. Qe6 $2 Rxe6 $2 {[%emt 0:00:00]} (16... Bxe6 $11 17. Bxe6 Rxe6) 17. Ke2 $2 {[%emt 0:02:24]} (17. Bxe6 $18 Bxe6 18. Rc1) 17... Re5 {[%emt 0:00:00]} 18. f3 {[%emt 0:01:41]} Be6 {[%emt 0:00:00] The position is equal.} 19. Bxe6 {[%emt 0:01:26]} Rxe6 $11 {[%emt 0:00:00][%mdl 4096] Endgame. KRR-KRR} 20. Rhd1 {[%emt 0:00:12]} Rae8 {[%emt 0:00:00]} 21. Rd3 {[%emt 0:00:08]} Rc6 {[%emt 0:00:00]} 22. Rad1 {[%emt 0:00:38]} Rc2+ {[%emt 0:00:00]} 23. R1d2 {[%emt 0:00:08]} Rxd2+ {[%emt 0:00:00]} 24. Kxd2 {[%emt 0:00:36]} Kf8 {[%emt 0:00:00]} 25. Rd7 {[%emt 0:00:30]} Re7 {[%emt 0:00:00]} 26. Rd8+ {[%emt 0:00:10]} Re8 {[%emt 0:00:00]} 27. Rd7 {[%emt 0:03:23]} Re7 {[%emt 0:00:00]} 28. Rd8+ {[%emt 0:00:09]} Re8 {[%emt 0:00:00] Weighted Error Value: White=0.47/Black=0.52.  Loses game:     	---       	Black=2      Missed win:     	White=1     	---        OK:         	White=8     	Black=8} 1/2-1/2

[Event "7th Sharjah Masters 2024"]
[Site "Sharjah"]
[Date "2024.05.16"]
[Round "3.26"]
[White "Iniyan, Pa"]
[Black "Ivanchuk, Vasyl"]
[Result "1-0"]
[ECO "D07"]
[WhiteElo "2497"]
[BlackElo "2609"]
[Annotator "RC"]
[PlyCount "109"]
[EventDate "2024.05.13"]
[EventType "swiss"]
[EventCountry "UAE"]
[SourceTitle "playchess.com"]
[Source "ChessBase"]
[SourceQuality "1"]
[TimeControl "5400+30"]

1. d4 {[%emt 0:00:07]} d5 {[%emt 0:00:14]} 2. c4 {[%emt 0:00:08]} Nc6 {[%emt 0:00:04]} 3. Nf3 {[%emt 0:00:51]} Bg4 {[%emt 0:00:07]} 4. Nc3 {[%emt 0:00:10]} e6 {[%emt 0:00:06]} 5. cxd5 {[%emt 0:00:54]} exd5 {[%emt 0:00:06]} 6. Bg5 {[%emt 0:00:09]} Be7 {[%emt 0:02:18]} 7. Bxe7 {[%emt 0:00:08]} Ngxe7 {[%emt 0:00:32]} 8. e3 {[%emt 0:00:18]} Qd6 {[%emt 0:03:50]} 9. Bd3 {[%emt 0:03:57]} Nd8 {[%emt 0:13:24]} 10. Nb5 {[%emt 0:08:25]} Qb4+ {[%emt 0:15:26]} 11. Qd2 {[%emt 0:00:09]} Qxd2+ {[%emt 0:00:18]} 12. Kxd2 {[%emt 0:00:07]} Bxf3 {[%emt 0:02:51]} 13. gxf3 {[%emt 0:01:49]} Kd7 {[%emt 0:02:57]} 14. f4 {[%emt 0:06:15]} g6 {[%emt 0:05:25]} 15. b4 {[%emt 0:00:34]} a5 {[%emt 0:05:48]} 16. a3 {[%emt 0:00:07]} Ndc6 {[%emt 0:05:48]} 17. Kc3 {[%emt 0:00:18]} Ra6 {[%emt 0:03:10]} 18. Kb3 {[%emt 0:09:30]} Rb6 {[%emt 0:01:26]} 19. h4 {[%emt 0:00:26]} h5 {[%emt 0:08:22]} 20. Nc3 {[%emt 0:00:41]} axb4 {[%emt 0:00:04]} 21. Na4 {[%emt 0:00:06]} Na5+ {[%emt 0:00:05]} 22. Ka2 {[%emt 0:00:06]} b3+ {[%emt 0:00:52]} 23. Kb2 {[%emt 0:00:05]} Rf6 {[%emt 0:05:07]} 24. Nc5+ {[%emt 0:03:58]} Kc8 {[%emt 0:01:32]} 25. Rhg1 {[%emt 0:02:21]} Rd8 {[%emt 0:11:18]} 26. Rg5 {[%emt 0:02:00]} Nc4+ {[%emt 0:02:16]} 27. Bxc4 {[%emt 0:01:37]} dxc4 {[%emt 0:00:05]} 28. Rc1 {[%emt 0:03:38]} Rc6 {[%emt 0:07:15]} 29. Re5 {[%emt 0:00:06]} Nf5 {[%emt 0:00:31]} 30. Ne4 {[%emt 0:00:29]} b6 {[%emt 0:03:31]} 31. d5 {[%emt 0:00:50]} Rcd6 {[%emt 0:00:01]} 32. Nxd6+ {[%emt 0:12:55]} Nxd6 {[%emt 0:00:01]} 33. Re7 {[%emt 0:00:09]} Rf8 {[%emt 0:01:32]} 34. f3 {[%emt 0:02:35]} Kd8 {[%emt 0:00:33]} 35. Re4 {[%emt 0:00:11]} b5 {[%emt 0:00:15]} 36. a4 {[%emt 0:00:07]} Kd7 {[%emt 0:00:47]} 37. axb5 {[%emt 0:00:37]} Ra8 {[%emt 0:00:03]} 38. Rexc4 {[%emt 0:00:33]} Nxc4+ {[%emt 0:00:04]} 39. Rxc4 {[%emt 0:00:05]} Ra2+ {[%emt 0:00:02]} 40. Kxb3 {[%emt 0:00:33]} Rf2 {[%emt 0:00:02]} 41. Kc3 {[%emt 0:01:20]} Rxf3 {[%emt 0:00:07]} 42. Kd4 {[%emt 0:00:04]} Rh3 {[%emt 0:00:33]} 43. Ra4 {[%emt 0:14:19]} Rxh4 {[%emt 0:00:06]} 44. Ke5 {[%emt 0:00:08]} g5 {[%emt 0:00:57]} 45. b6 {[%emt 0:01:13]} cxb6 {[%emt 0:00:44]} 46. Ra7+ {[%emt 0:01:56]} Ke8 {[%emt 0:00:01]} 47. fxg5 {[%emt 0:02:04]} Rh1 {[%emt 0:00:33]} 48. g6 {[%emt 0:01:41]} fxg6 {[%emt 0:00:04]} 49. Ke6 {[%emt 0:00:06]} Kf8 {[%emt 0:00:03]} 50. d6 {[%emt 0:00:23]} Re1 {[%emt 0:00:07]} 51. Ra3 {[%emt 0:00:13]} Kg7 {[%emt 0:00:44]} 52. Rd3 {[%emt 0:00:49]} Rf1 {[%emt 0:00:15]} 53. d7 {[%emt 0:00:05]} Rf6+ {[%emt 0:00:09]} 54. Ke5 {[%emt 0:00:05]} Rf5+ {[%emt 0:00:04]} 55. Ke4 {[%emt 0:00:07]} 1-0

[Event "7th Sharjah Masters 2024"]
[Site "Sharjah"]
[Date "2024.05.16"]
[Round "3.27"]
[White "Gupta, Abhijeet"]
[Black "Zemlyanskii, Ivan"]
[Result "0-1"]
[ECO "A16"]
[WhiteElo "2604"]
[BlackElo "2516"]
[Annotator "TA"]
[PlyCount "89"]
[EventDate "2024.05.13"]
[EventType "swiss"]
[EventCountry "UAE"]
[SourceTitle "playchess.com"]
[Source "ChessBase"]
[SourceQuality "1"]
[TimeControl "5400+30"]

{[%evp 9,89,0,14,25,25,18,39,20,31,20,33,34,32,30,48,0,16,0,0,0,0,0,0,0,35,0,5,10,2,0,5,-7,-6,-22,-8,-6,-6,-4,-4,-54,-58,-48,-59,-53,-56,-49,-57,-61,-59,-60,-17,-27,-4,-64,-64,-64,-19,-64,-64,-64,-64,-128,-128,-135,-136,-150,-150,-214,-214,-1276,-1204,-1281,-1025,-29964,-29961,-29971,-29972,-29972,-29972,-29961,-29966,-5097]} 1. Nf3 {[%emt 0:00:08]} Nf6 {[%emt 0:00:12][%cal Bg8f6,Bf6d5,Bd5c3][%mdl 32]} 2. c4 {[%emt 0:00:11]} g6 {[%emt 0:00:05]} 3. Nc3 {[%emt 0:00:18]} d5 {[%emt 0:00:06]} 4. cxd5 {[%emt 0:01:24]} Nxd5 {[%emt 0:00:05]} 5. h4 {[%emt 0:00:32][%cal Bh2h4,Bh4h5,Bh5h6][%mdl 32]} Bg7 {[%emt 0:00:15]} 6. e4 {[%emt 0:00:31]} Nxc3 {[%emt 0:00:08]} 7. dxc3 {[%emt 0:00:05]} Qxd1+ {[%emt 0:00:04]} 8. Kxd1 {[%emt 0:00:05] White is slightly better.} Nd7 {[%emt 0:00:17]} 9. h5 {[%emt 0:01:02]} b6 {[%emt 0:00:26]} 10. Be3 {[%emt 0:14:53]} Bb7 {[%emt 0:00:17]} 11. Nd2 {[%emt 0:01:33]} O-O-O {[%emt 0:00:30]} 12. h6 {[%emt 0:00:30]} Be5 {[%emt 0:00:30]} 13. Kc2 {[%emt 0:00:30]} f5 {[%emt 0:00:30]} 14. f3 {[%emt 0:00:30]} fxe4 {[%emt 0:00:30]} 15. Nxe4 {[%emt 0:00:30]} Bxe4+ {[%emt 0:24:25]} 16. fxe4 {[%emt 0:10:38]} Nf6 {[%emt 0:00:30]} 17. Rh4 {[%emt 0:00:30]} Bg3 {[%emt 0:00:30]} 18. Rh3 {[%emt 0:00:30]} Bd6 {[%emt 0:00:30]} 19. Bd3 {[%emt 0:00:30]} Rhf8 {[%emt 0:00:30]} 20. Rd1 {[%emt 0:00:30]} Ng4 {[%emt 0:00:30]} 21. Ba6+ {[%emt 0:00:30] This pair of bishops is nice.} Kb8 {[%emt 0:00:30]} 22. b4 {[%emt 0:00:30]} c6 {[%emt 0:00:30]} 23. Kb3 {[%emt 0:00:30]} Kc7 {[%emt 0:00:30]} 24. Be2 {[%emt 0:00:30]} (24. Bd4 $11) 24... Nf2 $15 {[%emt 0:00:30]} 25. Bxf2 {[%emt 0:00:30]} Rxf2 {[%emt 0:00:30]} 26. Bf3 {[%emt 0:00:30][%cal Oe4e5]} Be5 {[%emt 0:00:30][%cal Of2f3] [#] aiming for ...Rxf3!} 27. Rxd8 {[%emt 0:00:30]} Kxd8 {[%emt 0:00:30][%mdl 4096] Endgame. KRB-KRB} 28. Rh1 {[%emt 0:00:30]} e6 {[%emt 0:00:30] Black is much more active.} 29. a4 {[%emt 0:00:30]} a6 {[%emt 0:00:30][%cal Ba7a6,Ba6a5][%mdl 32]} 30. Rc1 {[%emt 0:00:30]} Ke7 {[%emt 0:00:30]} 31. Rc2 {[%emt 0:00:30]} ({Better is} 31. a5 $11 b5 32. Rh1) 31... Rxc2 $1 {[%emt 0:00:30]} 32. Kxc2 {[%emt 0:00:30] KB-KB} Bf4 {[%emt 0:00:30][%cal Oa6a5]} 33. Be2 {[%emt 0:00:30]} a5 $1 {[%emt 0:00:30]} (33... Bxh6 34. Bxa6 Bf4 35. Kd3 $11) 34. Kd3 {[%emt 0:00:30]} Kd6 {[%emt 0:58:21]} ({Much weaker is} 34... Bxh6 35. Kd4 $11) 35. Kc4 {[%emt 0:42:19]} ({White should try} 35. Bg4 $15) 35... Bxh6 $17 {[%emt 0:00:30]} 36. e5+ {[%emt 0:01:19]} Kxe5 {[%emt 0:01:06]} 37. bxa5 {[%emt 0:00:04]} bxa5 {[%emt 0:00:05]} 38. Kc5 {[%emt 0:00:03]} (38. Bf3 $17 {was necessary.}) 38... Bd2 $19 {[%emt 0:00:44]} 39. c4 {[%emt 0:04:49] [#]} (39. Kc4) 39... Bb4+ {[%emt 0:00:26]} 40. Kxc6 {[%emt 0:00:03]} Kd4 {[%emt 0:00:05]} 41. c5 {[%emt 0:00:07]} e5 {[%emt 0:00:35] Black mates.} 42. Kb5 {[%emt 0:00:04]} Bxc5 {[%emt 0:00:04]} 43. Kxa5 {[%emt 0:00:02]} Kc3 {[%emt 0:02:05]} 44. Kb5 {[%emt 0:00:14]} Ba7 {[%emt 0:11:09]} 45. Kc6 {[%emt 0:02:26] Weighted Error Value: White=0.54/Black=0.05 (flawless) .  Mistake:       	White=5     	---        Inaccurate:     	White=3     	Black=3      OK:         	White=12    	Black=11     Best:        	---       	Black=5      Strong:       	---       	Black=2} 0-1